Workbook

Sheet OPĆI DIO
A3: PRIJEDLOG FINANCIJSKOG PLANA (proračunski korisnik) ZA 2020. I PROJEKCIJA PLANA ZA 2020. I 2021. GODINU
A4: OPĆI DIO
F6: Projekcija plana za 2020. | G6: Projekcija plana za 2021. | H6: Projekcija plana za 2022.
A7: PRIHODI UKUPNO | F7: =+F8+F9 -> 8903500 | G7: =G8+G9 -> 8953474 | H7: =+H8+H9 -> 8987198
A8: PRIHODI POSLOVANJA | F8: 8903500 | G8: 8953474 | H8: 8987198
A9: PRIHODI OD PRODAJE NEFINANCIJSKE IMOVINE
A10: RASHODI UKUPNO | F10: =+F11+F12 -> 8903500 | G10: =+G11+G12 -> 8953474 | H10: =+H11+H12 -> 8987198
A11: RASHODI POSLOVANJA | F11: 8643500 | G11: 8933018 | H11: 8966496
A12: RASHODI ZA NABAVU NEFINANCIJSKE IMOVINE | F12: 260000 | G12: 20456 | H12: 20702
A13: RAZLIKA - VIŠAK / MANJAK | F13: =+F7-F10 -> 0 | G13: =+G7-G10 -> 0 | H13: =+H7-H10 -> 0
F15: Projekcija plana za 2020. | G15: Projekcija plana za 2021. | H15: Projekcija plana za 2022.
A16: UKUPAN DONOS VIŠKA/MANJKA IZ PRETHODNE(IH) GODINA
A17: VIŠAK/MANJAK IZ PRETHODNE(IH) GODINE KOJI ĆE SE POKRITI/RASPOREDITI
F19: Projekcija plana za 2020. | G19: Projekcija plana za 2021. | H19: Projekcija plana za 2022.
A20: PRIMICI OD FINANCIJSKE IMOVINE I ZADUŽIVANJA
A21: IZDACI ZA FINANCIJSKU IMOVINU I OTPLATE ZAJMOVA
A22: NETO FINANCIRANJE | F22: =F20-F21 -> 0 | G22: =G20-G21 -> 0 | H22: =H20-H21 -> 0
A24: VIŠAK / MANJAK + NETO FINANCIRANJE | F24: =IF((F13+F17+F22)<>0,"NESLAGANJE ZBROJA",(F13+F17+F22)) -> 0 | G24: =IF((G13+G17+G22)<>0,"NESLAGANJE ZBROJA",(G13+G17+G22)) -> 0 | H24: =IF((H13+H17+H22)<>0,"NESLAGANJE ZBROJA",(H13+H17+H22)) -> 0
A26: Napomena: Redak UKUPAN DONOS VIŠKA/MANJKA IZ PRETHODNE(IH) GODINA služi kao informacija i ne uzima se u obzir kod uravnoteženja proračuna, već se proračun uravnotežuje retkom VIŠAK/MANJAK IZ PRETHODNE(IH) GODINE KOJI ĆE SE POKRITI/RASPOREDITI.

Sheet PRIHODI
G1: Tablica 1
B2: NAZIV USTANOVE_____________________________ | C2: SŠ CENTAR ZA ODGOJ I OBRAZOVANJE, ZAGREB, Zagorska 14
B4: PLAN PRIHODA I PRIMITAKA 2020. - 2022.
B6: 1.1. PRIHODI I PRIMICI KOJI NISU DOBIVENI S RAČUNA PRORAČUNA GRADA ZAGREBA
B7: KONTO | C7: NAZIV | D7: IZVOR FINANCIRANJA | E7: PLAN 2020. | F7: PLAN 2021. | G7: PLAN 2022.
B8: 6 | C8: PRIHODI POSLOVANJA | E8: =E9+E33+E62+E72+E82+E79 -> 7725500 | F8: =F9+F33+F62+F72+F82+F79 -> 7748574 | G8: =G9+G33+G62+G72+G82+G79 -> 7767998
A9: ① | B9: 63 | C9: Pomoći iz inozemstva i od subjekata unutar općeg proračuna | E9: =E10+E13+E18+E21+E24+E27+E30 -> 7587500 | F9: =F10+F13+F18+F21+F24+F27+F30 -> 7607874 | G9: =G10+G13+G18+G21+G24+G27+G30 -> 7625998
B10: 631 | C10: Pomoći od inozemnih vlada | E10: =E11+E12 -> 0 | F10: =F11+F12 -> 0 | G10: =G11+G12 -> 0
B11: 6311 | C11: Tekuće pomoći od inozemnih vlada
B12: 6312 | C12: Kapitalne pomoći od inozemnih vlada
B13: 632 | C13: Pomoći od međunarodnih organizacija te institucija i tijela EU | E13: =SUM(E14:E17) -> 0 | F13: =SUM(F14:F17) -> 0 | G13: =SUM(G14:G17) -> 0
B14: 6321 | C14: Tekuće pomoći od međunarodnih organizacija
B15: 6322 | C15: Kapitalne pomoći od međunarodnih organizacija
B16: 6323 | C16: Tekuće pomoći od institucija i tijela EU | D16: 51
B17: 6324 | C17: Kapitalne pomoći od institucija i tijela EU | D17: 51
B18: 633 | C18: Pomoći proračunu iz drugih proračuna | E18: =SUM(E19:E20) -> 0 | F18: =SUM(F19:F20) -> 0 | G18: =SUM(G19:G20) -> 0
B19: 6331 | C19: Tekuće pomoći proračunu iz drugih proračuna | D19: 52
B20: 6332 | C20: Kapitalne pomoći proračunu iz drugih proračuna | D20: 52
B21: 634 | C21: Pomoći od izvanproračunskih korisnika | E21: =SUM(E22:E23) -> 0 | F21: =SUM(F22:F23) -> 0 | G21: =SUM(G22:G23) -> 0
B22: 6341 | C22: Tekuće pomoći od izvanproračunskih korisnika | D22: 52
B23: 6342 | C23: Kapitalne pomoći od izvanproračunskih korisnika | D23: 52
B24: 635 | C24: Pomoći izravnanja za decentralizirane funkcije | E24: =SUM(E25:E26) -> 0 | F24: =SUM(F25:F26) -> 0 | G24: =SUM(G25:G26) -> 0
B25: 6351 | C25: Tekuće pomoći izravnanja za decentralizirane funkcije | D25: 52
B26: 6352 | C26: Kapitalne pomoći izravnanja za decentralizirane funkcije | D26: 52
B27: 636 | C27: Pomoći proračunskim korisnicima iz proračuna koji im nije nadležan | E27: =SUM(E28:E29) -> 7587500 | F27: =SUM(F28:F29) -> 7607874 | G27: =SUM(G28:G29) -> 7625998
B28: 6361 | C28: Tekuće pomoći proračunskim korisnicima iz proračuna koji im nije nadležan | D28: 52 | E28: 7587500 | F28: 7607874 | G28: 7625998
B29: 6362 | C29: Kapitalne pomoći proračunskim korisnicima iz proračuna koji im nije nadležan | D29: 52
B30: 638 | C30: Pomoći iz državnog proračuna temeljem prijenosa EU sredstava | E30: =SUM(E31:E32) -> 0 | F30: =SUM(F31:F32) -> 0 | G30: =SUM(G31:G32) -> 0
B31: 6381 | C31: Tekuće pomoći iz državnog proračuna temeljem prijenosa EU sredstava | D31: 56
B32: 6382 | C32: Kapitalne pomoći iz državnog proračuna temeljem prijenosa EU sredstava | D32: 56
A33: ② | B33: 64 | C33: Prihodi od imovine | E33: =E34+E42+E47+E55 -> 0 | F33: =F34+F42+F47+F55 -> 0 | G33: =G34+G42+G47+G55 -> 0
B34: 641 | C34: Prihodi od financijske imovine | E34: =SUM(E35:E41) -> 0 | F34: =SUM(F35:F41) -> 0 | G34: =SUM(G35:G41) -> 0
B35: 6412 | C35: Prihodi od kamata po vrijednosnim papirima
B36: 6413 | C36: Kamate na oročena sredstva i depozite po viđenju | D36: 11
B37: 6414 | C37: Prihodi od zateznih kamata | D37: 11
B38: 6415 | C38: Prihodi od pozitivnih tečajnih razlika i razlika zbog primjene valutne klauzule | D38: 11
B39: 6416 | C39: Prihodi od dividendi | D39: 11
B40: 6417 | C40: Prihodi iz dobiti trgovačkih društava, kreditnih i ostalih financijskih institucija po posebnim propisima | D40: 11
B41: 6419 | C41: Ostali prihodi od financijske imovine
B42: 642 | C42: Prihodi od nefinancijske imovine | E42: =SUM(E43:E46) -> 0 | F42: =SUM(F43:F46) -> 0 | G42: =SUM(G43:G46) -> 0
B43: 6422 | C43: Prihodi od zakupa i iznajmljivanja imovine | D43: 11
B44: 6423 | C44: Naknada za korištenje nefinancijske imovine | D44: 43
B45: 6425 | C45: Prihodi od prodaje kratkotrajne nefinancijske imovine
B46: 6429 | C46: Ostali prihodi od nefinancijske imovine | D46: 43
B47: 643 | C47: Prihodi od kamata na dane zajmove | E47: =SUM(E48:E54) -> 0 | F47: =SUM(F48:F54) -> 0 | G47: =SUM(G48:G54) -> 0
B48: 6431 | C48: Prihodi od kamata na dane zajmove međunarodnim organizacijama, institucijama i tijelima EU te inozemnim vladama
B49: 6432 | C49: Prihodi od kamata na dane zajmove neprofitnim organizacijama, građanima i kućanstvima | D49: 11
B50: 6433 | C50: Prihodi od kamata na dane zajmove kreditnim i ostalim financijskim institucijama u javnom sektoru
B51: 6434 | C51: Prihodi od kamata na dane zajmove trgovačkim društvima u javnom sektoru | D51: 11
B52: 6435 | C52: Prihodi od kamata na dane zajmove kreditnim i ostalim financijskim institucijama izvan javnog sektora
B53: 6436 | C53: Prihodi od kamata na dane zajmove trgovačkim društvima i obrtnicima izvan javnog sektora | D53: 11
B54: 6437 | C54: Prihodi od kamata na dane zajmove drugim razinama vlasti
B55: 644 | C55: Prihodi od kamata na dane zajmove po protestiranim jamstvima | E55: =SUM(E56:E61) -> 0 | F55: =SUM(F56:F61) -> 0 | G55: =SUM(G56:G61) -> 0
B56: 6442 | C56: Prihodi od kamata na dane zajmove neprofitnim organizacijama, građanima i kućanstvima po protestiranim jamstvima
B57: 6443 | C57: Prihodi od kamata na dane zajmove kreditnim i ostalim financijskim institucijama u javnom sektoru po protestiranim jamstvima
B58: 6444 | C58: Prihodi od kamata na dane zajmove trgovačkim društvima u javnom sektoru po protestiranim jamstvima
B59: 6445 | C59: Prihodi od kamata na dane zajmove kreditnim i ostalim financijskim institucijama izvan javnog sektora po protestiranim jamstvima
B60: 6446 | C60: Prihodi od kamata na dane zajmove trgovačkim društvima i obrtnicima izvan javnog sektora po protestiranim jamstvima
B61: 6447 | C61: Prihodi od kamata na dane zajmove drugim razinama vlasti po protestiranim jamstvima
A62: ③ | B62: 65 | C62: Prihodi od upravnih i administrativnih pristojbi, pristojbi po posebnim propisima i naknada | E62: =E63+E68 -> 118000 | F62: =F63+F68 -> 120700 | G62: =G63+G68 -> 122000
B63: 651 | C63: Upravne i administrativne pristojbe | E63: =SUM(E64:E67) -> 0 | F63: =SUM(F64:F67) -> 0 | G63: =SUM(G64:G67) -> 0
B64: 6511 | C64: Državne upravne i sudske pristojbe
B65: 6512 | C65: Županijske, gradske i općinske pristojbe i naknade | D65: 11
B66: 6513 | C66: Ostale upravne pristojbe i naknade | D66: 11
B67: 6514 | C67: Ostale pristojbe i naknade | D67: 43
B68: 652 | C68: Prihodi po posebnim propisima | E68: =SUM(E69:E71) -> 118000 | F68: =SUM(F69:F71) -> 120700 | G68: =SUM(G69:G71) -> 122000
B69: 6526 | C69: Ostali nespomenuti prihodi | D69: 11 | E69: 118000 | F69: 120700 | G69: 122000
B70: 6527 | C70: Naknade od financijske imovine | D70: 11
B71: 6528 | C71: Prihodi od novčane naknade poslodavca zbog nezapošljavanje osoba s invaliditetom
A72: ④ | B72: 66 | C72: Prihodi od prodaje proizvoda i robe te pruženih usluga i prihodi od donacija | E72: =E73+E76 -> 20000 | F72: =F73+F76 -> 20000 | G72: =G73+G76 -> 20000
B73: 661 | C73: Prihodi od prodaje proizvoda i robe te pruženih usluga | E73: =SUM(E74:E75) -> 20000 | F73: =SUM(F74:F75) -> 20000 | G73: =SUM(G74:G75) -> 20000
B74: 6614 | C74: Prihodi od prodaje proizvoda i robe | D74: 31 | E74: 20000 | F74: 20000 | G74: 20000
B75: 6615 | C75: Prihodi od pruženih usluga | D75: 31
B76: 663 | C76: Donacije od pravnih i fizičkih osoba izvan općeg proračuna | E76: =SUM(E77:E78) -> 0 | F76: =SUM(F77:F78) -> 0 | G76: =SUM(G77:G78) -> 0
B77: 6631 | C77: Tekuće donacije | D77: 61
B78: 6632 | C78: Kapitalne donacije | D78: 61
B79: 67 | C79: Prihodi iz nadležnog proračuna i HZZO-a na temelju ugovornih obveza | E79: =E80 -> 0 | F79: 0 | G79: 0
A80: ⑤ | B80: 673 | C80: Prihodi od HZZO-a na temelju ugovornih obveza | E80: 0 | F80: 0 | G80: 0
B81: 6731 | C81: Prihodi od HZZO-a na temelju ugovornih obveza | D81: 43
A82: ⑥ | B82: 68 | C82: Kazne, upravne mjere i ostali prihodi | E82: =E83 -> 0 | F82: 0 | G82: 0
B83: 683 | C83: Ostali prihodi | E83: 0 | F83: 0 | G83: 0
B84: 6831 | C84: Ostali prihodi | D84: 11
B85: 7 | C85: Prihodi od prodaje nefinancijske imovine | E85: =E86+E110 -> 0 | F85: =F86+F110 -> 0 | G85: =G86+G110 -> 0
A86: ⑦ | B86: 72 | C86: Prihodi od prodaje proizvedene dugotrajne imovine | E86: =E87+E91+E99+E101+E106 -> 0 | F86: =F87+F91+F99+F101+F106 -> 0 | G86: =G87+G91+G99+G101+G106 -> 0
B87: 721 | C87: Prihodi od prodaje građevinskih objekata | E87: =SUM(E88:E90) -> 0 | F87: =SUM(F88:F90) -> 0 | G87: =SUM(G88:G90) -> 0
B88: 7211 | C88: Stambeni objekti | D88: 11
B89: 7212 | C89: Poslovni objekti | D89: 11
B90: 7214 | C90: Ostali građevinski objekti | D90: 11
B91: 722 | C91: Prihodi od prodaje postrojenja i opreme | E91: =SUM(E92:E98) -> 0 | F91: =SUM(F92:F98) -> 0 | G91: =SUM(G92:G98) -> 0
B92: 7221 | C92: Uredska oprema i namještaj | D92: 11
B93: 7222 | C93: Komunikacijska oprema | D93: 11
B94: 7223 | C94: Oprema za održavanje i zaštitu | D94: 11
B95: 7224 | C95: Medicinska i laboratorijska oprema | D95: 11
B96: 7225 | C96: Instrumenti, uređaji i strojevi | D96: 11
B97: 7226 | C97: Sportska i glazbena oprema | D97: 11
B98: 7227 | C98: Uređaji, strojevi i oprema za ostale namjene | D98: 11
B99: 723 | C99: Prihodi od prodaje prijevoznih sredstava | E99: =SUM(E100:E100) -> 0 | F99: =SUM(F100:F100) -> 0 | G99: =SUM(G100:G100) -> 0
B100: 7231 | C100: Prijevozna sredstva u cestovnom prometu | D100: 11
B101: 724 | C101: Prihodi od prodaje knjiga, umjetničkih djela i ostalih izložbenih vrijednosti | E101: =SUM(E102:E105) -> 0 | F101: =SUM(F102:F105) -> 0 | G101: =SUM(G102:G105) -> 0
B102: 7241 | C102: Knjige | D102: 11
B103: 7242 | C103: Umjetnička djela (izložena u galerijama, muzejima i slično) | D103: 11
B104: 7243 | C104: Muzejski izlošci i predmeti prirodnih rijetkosti | D104: 11
B105: 7244 | C105: Ostale nespomenute izložbene vrijednosti | D105: 11
B106: 726 | C106: Prihodi od prodaje nematerijalne proizvedene imovine | E106: =SUM(E107:E109) -> 0 | F106: =SUM(F107:F109) -> 0 | G106: =SUM(G107:G109) -> 0
B107: 7262 | C107: Ulaganja u računalne programe
B108: 7263 | C108: Umjetnička, literarna i znanstvena djela
B109: 7264 | C109: Ostala nematerijalna proizvedena imovina | D109: 11
A110: ⑧ | B110: 73 | C110: Prihodi od prodaje plemenitih metala i ostalih pohranjenih vrijednosti | E110: =E111 -> 0 | F110: =F111 -> 0 | G110: =G111 -> 0
B111: 731 | C111: Prihodi od prodaje plemenitih metala i ostalih pohranjenih vrijednosti | E111: =SUM(E112:E112) -> 0 | F111: =SUM(F112:F112) -> 0 | G111: =SUM(G112:G112) -> 0
B112: 7312 | C112: Pohranjene knjige, umjetnička djela i slične vrijednosti
B113: 8 | C113: Primici od financijske imovine i zaduživanja | E113: =E114+E121+E124 -> 0 | F113: =F114+F121+F124 -> 0 | G113: =G114+G121+G124 -> 0
A114: ⑨ | B114: 81 | C114: Primljeni povrati glavnice danih zajmova i depozita | E114: =E115+E117+E119 -> 0 | F114: =F115+F117+F119 -> 0 | G114: =G115+G117+G119 -> 0
B115: 812 | C115: Primici (povrati) glavnice zajmova danih neprofitnim organizacijama, građanima i kućanstvima | E115: =E116 -> 0 | F115: =F116 -> 0 | G115: =G116 -> 0
B116: 8121 | C116: Povrat zajmova danih neprofitnim organizacijama, građanima i kućanstvima u tuzemstvu | D116: 11
B117: 813 | C117: Primici (povrati) glavnice zajmova danih kreditnim i ostalim financijskim institucijama u javnom sektoru | E117: =E118 -> 0 | F117: =F118 -> 0 | G117: =G118 -> 0
B118: 8134 | C118: Povrat zajmova danih ostalim financijskim institucijama u javnom sektoru
B119: 818 | C119: ='[1]svi uredi'!B237 -> Primici od povrata depozita i jamčevnih pologa | E119: =E120 -> 0 | F119: =F120 -> 0 | G119: =G120 -> 0
B120: 8181 | C120: ='[1]svi uredi'!B238 -> Primici od povrata depozita od kreditnih i ostalih institucija- tuzemni
A121: ⑩ | B121: 83 | C121: Primici od prodaje dionica i udjela u glavnici | E121: =E122 -> 0 | F121: 0 | G121: 0
B122: 833 | C122: Primici od prodaje dionica i udjela u glavnici kreditnih i ostalih financijskih institucija izvan javnog sektora | E122: 0 | F122: 0 | G122: 0
B123: 8331 | C123: Dionice i udjeli u glavnici tuzemnih kreditnih i ostalih financijskih institucija izvan javnog sektora | D123: 11
A124: ⑪ | B124: 84 | C124: Primici od zaduživanja | E124: =E125+E127+E131 -> 0 | F124: =F125+F127+F131 -> 0 | G124: =G125+G127+G131 -> 0
B125: 842 | C125: Primljeni krediti i zajmovi od kreditnih i ostalih financijskih institucija u javnom sektoru | E125: =E126 -> 0 | F125: =F126 -> 0 | G125: =G126 -> 0
B126: 8422 | C126: Primljeni krediti i zajmovi od kreditnih institucija u javnom sektoru | D126: 81
B127: 844 | C127: Primljeni krediti i zajmovi od kreditnih i ostalih financijskih institucija izvan javnog sektora | E127: =SUM(E128:E130) -> 0 | F127: =SUM(F128:F130) -> 0 | G127: =SUM(G128:G130) -> 0
B128: 8443 | C128: Primljeni krediti od tuzemnih kreditnih institucija izvan javnog sektora | D128: 81
B129: 8444 | C129: Primljeni zajmovi od tuzemnih osiguravajućih društava izvan javnog sektora
B130: 8445 | C130: Primljeni zajmovi od ostalih tuzemnih financijskih institucija izvan javnog sektora | D130: 81
B131: 845 | C131: Primljeni zajmovi od trgovačkih društava i obrtnika izvan javnog sektora | E131: =E132 -> 0 | F131: =F132 -> 0 | G131: =G132 -> 0
B132: 8453 | C132: Primljeni zajmovi od tuzemnih trgovačkih društava izvan javnog sektora | D132: 81
B133: I. UKUPNO PRIHODI I PRIMICI KOJI NISU DOBIVENI S RAČUNA PRORAČUNA GRADA ZAGREBA | E133: =E113+E85+E8 -> 7725500 | F133: =F113+F85+F8 -> 7748574 | G133: =G113+G85+G8 -> 7767998
B134: 1.2. PRIHODI I PRIMICI KOJI SU DOBIVENI S RAČUNA PRORAČUNA GRADA ZAGREBA
B135: 67 | C135: Prihodi iz nadležnog proračuna i HZZO-a na temelju ugovornih obveza | E135: =SUM(E136) -> 1178000 | F135: =SUM(F136) -> 1204900 | G135: =SUM(G136) -> 1219200
A136: ⑫ | B136: 671 | C136: Prihodi iz nadležnog proračuna za financiranje redovne djelatnosti proračunskih korisnika | E136: =SUM(E137:E139) -> 1178000 | F136: =SUM(F137:F139) -> 1204900 | G136: =SUM(G137:G139) -> 1219200
B137: 6711 | C137: Prihodi iz nadležnog proračuna za financiranje rashoda poslovanja | D137: 11 | E137: 918000 | F137: 938900 | G137: 950200
B138: 6712 | C138: Prihodi iz nadležnog proračuna za financiranje rashoda za nabavu nefinancijske imovine | D138: 11 | E138: 260000 | F138: 266000 | G138: 269000
B139: 6714 | C139: Prihodi iz nadležnog proračuna za financiranje izdataka za financijsku imovinu i otplatu zajmova | D139: 11
B140: II. UKUPNO PRIHODI I PRIMICI KOJI SU DOBIVENI S RAČUNA PRORAČUNA GRADA ZAGREBA | E140: =E135 -> 1178000 | F140: =F135 -> 1204900 | G140: =G135 -> 1219200
B141: III. SVEUKUPNO PRIHODI I PRIMICI | E141: =E133+E140 -> 8903500 | F141: =F133+F140 -> 8953474 | G141: =G133+G140 -> 8987198
A142: ⑬ | B142: VIŠAK/MANJAK IZ PRETHODNE(IH) GODINE KOJI ĆE SE POKRITI /RASPOREDITI
B143: VIŠAK/MANJAK IZ PRETHODNE(IH) GODINE KOJI ĆE SE POKRITI /RASPOREDITI, A KOJI JE POSLJEDICA FINANCIRANJA EU PROJEKATA
B144: SVEUKUPNO ZA RASPORED | E144: =E141+E142+E143 -> 8903500 | F144: =F141+F142+F143 -> 8953474 | G144: =G141+G142+G143 -> 8987198

Sheet RASHODI - SŠ-
R1: Obrazac FIN. PL.- SŠ/UD
A2: PLAN RASHODA I IZDATAKA 2020.-2022.
A3: Korisnik proračuna:SŠ CENTAR ZA ODGOJ I OBRAZOVANJE,ZAGREB; Zagorska 14
A4: Kontak osoba:Ankica Marić | C4: Ankica Marić
A5: Tel: | C5: 01 36 43 437
A7: Poz. | B7: Broj ek.klas. | C7: Naziv | D7: PLAN 2019. 1.1.-30.6.2019. | E7: PRIJEDLOG PLANA ZA 2020. | F7: RASHODI ZA ZAPOSLENE KOJI SE FINANCIRAJU IZ DRŽAVNOG PRORAČUNA (konto 636 izv.fin. 52) | G7: PLANIRANI PRIHODI I PRIMICI IZ NADLEŽNOG PRORAČUNA ZA 2020. (konto 671, izv.fin. 11) | H7: PLANIRANI PRIHODI I PRIMICI KOJI NISU DOBIVENI S RAČUNA GRADA ZAGREBA ZA 2020. | I7: Pomoći iz inozemstva i od subjekata unutar općeg proračuna (skupina konta 63, izv.fin 51,52 i 56) | J7: Prihodi od imovine (skupina konta 64, izv.fin. 11 i 43) | K7: Prihodi od upravnih i administrativnih pristojbi, pristojbi po posebnim propisima i naknada (skupina konta 65, izv.fin. 11 i 43) | L7: Prihodi od prodaje proizvoda i robe te pruženih usluga i prihodi od donacija (skupina konta 66, izv.fin. 31 i 61 ) | M7: Prihodi iz nadležnog proračuna i HZZO-a na temelju ugovornih obveza (konto 673, izv.fin. 43) | N7: Kazne, upravne mjere i ostali prihodi (skupina konta 68, izv fin. 11) | O7: Prihodi od prodaje proizvedene dugotrajne imovine (skupina konta 72 i 73, izv.fin. 11) | P7: Primici od zaduživanja (skupina konta 81, 83 i 84, izv.fin 11 i 81) | Q7: Višak/manjak iz prethodne(ih) godine koji će se pokriti/ rasporediti | R7: Višak/manjak iz prethodne(ih) godine koji će se pokriti/rasporediti, a koji je posljedica financiranje EU projekata | S7: PRIJEDLOG PLANA ZA 2021. | T7: PRIJEDLOG PLANA ZA 2022.
F9: ⑭ | G9: ⑫ | I9: ① | J9: ② | K9: ③ | L9: ④ | M9: ⑤ | N9: ⑥ | O9: ⑦ I ⑧ | P9: ⑨,⑩ I ⑪ | Q9: ⑬
A10: 1 | B10: 2 | C10: 3 | E10: 4=5+6+7+16+17 | F10: 5 | G10: 6 | H10: 7=8+9+10+11+ 12+13+14+15 | I10: 8 | J10: 9 | K10: 10 | L10: 11 | M10: 12 | N10: 13 | O10: 14 | P10: 15 | Q10: 16 | R10: 17 | S10: 18 | T10: 19
C12: SVEUKUPNO: | D12: =D14+D27+D68 -> 151652999.8 | E12: =E14+E27+E68 -> 8903500 | F12: 7587500 | G12: 1178000 | H12: 138000 | I12: 0 | J12: 0 | K12: 118000 | L12: 20000 | M12: 0 | N12: 0 | O12: 0 | P12: 0 | Q12: 0 | R12: 0 | S12: 8953474.2 | T12: 8987198.75
B14: 31 | C14: RASHODI ZA ZAPOSLENE | D14: =D15+D18+D20 -> 10819999.84 | E14: =E15+E18+E20 -> 7357000 | F14: =F15+F18+F20 -> 7357000 | L14: =L15+L18+L20 -> 0 | S14: =S15+S18+S20 -> 7371714 | T14: 7386457.428
B15: 311 | C15: PLAĆE | D15: =SUM(D16) -> 5400000 | E15: =SUM(E16:E17) -> 6122000 | F15: =SUM(F16:F17) -> 6122000 | K15: =SUM(K16:K17) -> 0 | L15: =SUM(L16:L17) -> 0 | S15: =SUM(S16:S17) -> 6134244 | T15: =SUM(T16:T17) -> 6146512.488
B16: 3111 | C16: Plaće za redovan rad | D16: 5400000 | E16: =F16+G16+H16+Q16+R16 -> 6032000 | F16: 6032000 | H16: =SUM(I16:P16) -> 0 | K16: 0 | L16: 0 | S16: =SUM(E16*1.002) -> 6044064 | T16: =SUM(S16*1.002) -> 6056152.128
B17: 3113 | C17: Plaće za prekovremeni rad | E17: =F17+G17+H17+Q17+R17 -> 90000 | F17: 90000 | H17: 0 | K17: 0 | L17: 0 | S17: =SUM(E17*1.002) -> 90180 | T17: =SUM(S17*1.002) -> 90360.36
B18: 312 | C18: OSTALI RASHODI ZA ZAPOSLENE | D18: =SUM(D19) -> 20000 | E18: 190000 | F18: =SUM(F19) -> 190000 | H18: 0 | K18: =SUM(K19) -> 0 | L18: =SUM(L19) -> 0 | S18: 190380 | T18: 190760.76
B19: 3121 | C19: Ostali rashodi za zaposlene | D19: 20000 | E19: =F19+G19+H19+Q19+R19 -> 190000 | F19: 190000 | H19: =SUM(I19:P19) -> 0 | K19: 0 | L19: 0 | S19: =SUM(E19*1.002) -> 190380 | T19: =SUM(S19*1.002) -> 190760.76
B20: 313 | C20: DOPRINOSI NA PLAĆE | D20: =SUM(D21:D21) -> 5399999.835 | E20: =SUM(E21:E21) -> 1045000 | F20: =SUM(F21:F21) -> 1045000 | H20: 0 | K20: =SUM(K21:K21) -> 0 | L20: =SUM(L21:L21) -> 0 | S20: =SUM(S21:S21) -> 1047090 | T20: =SUM(T21:T21) -> 1049184.18
B21: 3132 | C21: Doprinos za obvezno zdravstveno osiguranje | D21: =D16-0.165 -> 5399999.835 | E21: =F21+G21+H21+Q21+R21 -> 1045000 | F21: 1045000 | H21: 0 | K21: 0 | L21: 0 | S21: =SUM(E21*1.002) -> 1047090 | T21: =SUM(S21*1.002) -> 1049184.18
K22: 0
B23: 3 | C23: RASHODI POSLOVANJA | D23: =D29+D69 -> 113172306 | G23: =G29+G69 -> 918000
B24: 4 | C24: RASHODI ZA NABAVU NEFINANCIJSKE IMOVINE | D24: =D61+D70 -> 27660694 | G24: =G61+G70 -> 0
D25: =D23+D24 -> 140833000 | G25: =G23+G24 -> 918000
A27: Program 1001. DECENTRALIZIRANA SREDSTVA ZA SREDNJE ŠKOLE I UČENIČKE DOMOVE | D27: =SUM(D28+D60) -> 88633000 | E27: =SUM(E28+E60) -> 1136500 | F27: =SUM(F28+F60) -> 30500 | G27: 968000 | H27: 138000 | I27: 0 | J27: 0 | K27: 118000 | L27: 20000 | M27: 0 | N27: 0 | O27: 0 | P27: 0 | Q27: 0 | R27: 0 | S27: 1162412.2 | T27: 1176361.146
A28: Aktivnost A10001. REDOVNA DJELATNOST SREDNJIH ŠKOLA I UČENIČKIH DOMOVA | D28: =SUM(D30+D34+D40+D50+D55) -> 72597306 | E28: =SUM(E30+E34+E40+E50+E55) -> 876500 | F28: =SUM(F30+F34+F40+F50+F55) -> 30500 | G28: 708000 | H28: 138000 | I28: 0 | J28: 0 | K28: 118000 | L28: 20000 | M28: 0 | N28: 0 | O28: 0 | P28: 0 | Q28: 0 | R28: 0 | S28: 896484.2 | T28: 907242.0104
B29: 3 | C29: RASHODI POSLOVANJA | D29: =D30+D34+D40+D50+D55 -> 72597306 | G29: =G30+G34+G40+G50+G55 -> 708000
B30: 321 | C30: Naknade troškova zaposlenima | D30: =SUM(D31:D33) -> 18452471 | E30: =SUM(E31:E33) -> 200000 | F30: =SUM(F31:F33) -> 0 | G30: 200000 | H30: 0 | I30: =SUM(I31:I33) -> 0 | J30: 0 | K30: 0 | L30: 0 | M30: 0 | N30: 0 | O30: 0 | P30: 0 | Q30: 0 | R30: 0 | S30: 204560 | T30: 207014.72
A31: 1 | B31: 3211 | C31: Službena putovanja | D31: 323200 | E31: =F31+G31+H31+Q31+R31 -> 25000 | G31: 25000 | H31: =SUM(I31:P31) -> 0 | S31: =SUM(E31*1.0228) -> 25570 | T31: =SUM(S31*1.012) -> 25876.84
A32: 2 | B32: 3212 | C32: Naknade za prijevoz, za rad na terenu i odvojeni život | D32: 17674871 | E32: =F32+G32+H32+Q32+R32 -> 165000 | G32: 165000 | H32: =SUM(I32:P32) -> 0 | S32: =SUM(E32*1.0228) -> 168762 | T32: =SUM(S32*1.012) -> 170787.144
A33: 3 | B33: 3213 | C33: Stručno usavršavanje zaposlenika | D33: 454400 | E33: =F33+G33+H33+Q33+R33 -> 10000 | G33: 10000 | H33: =SUM(I33:P33) -> 0 | S33: =SUM(E33*1.0228) -> 10228 | T33: =SUM(S33*1.012) -> 10350.736
B34: 322 | C34: Rashodi za materijal i energiju | D34: =SUM(D35:D39) -> 35438635 | E34: =SUM(E35:E39) -> 416000 | F34: =SUM(F35:F39) -> 17000 | G34: =SUM(G35:G39) -> 264000 | H34: 135000 | I34: 0 | J34: 0 | K34: 115000 | L34: 20000 | M34: 0 | N34: 0 | O34: 0 | P34: 0 | Q34: 0 | R34: 0 | S34: 425484.8 | T34: 430590.6176
A35: 4 | B35: 3221 | C35: Uredski materijal i ostali materijalni rashodi | D35: 2486000 | E35: =F35+G35+H35+Q35+R35 -> 53000 | F35: 17000 | G35: 16000 | H35: =SUM(I35:P35) -> 20000 | K35: 20000 | S35: =SUM(E35*1.0228) -> 54208.4 | T35: =SUM(S35*1.012) -> 54858.9008
A36: 5 | B36: 3222 | C36: Materijal i sirovine | D36: 13883524 | E36: 178000 | G36: 63000 | H36: =SUM(I36:P36) -> 115000 | K36: 95000 | L36: 20000 | S36: =SUM(E36*1.0228) -> 182058.4 | T36: =SUM(S36*1.012) -> 184243.1008
A37: 6 | B37: 3223 | C37: Energija | D37: 18016611 | E37: 140000 | G37: 140000 | H37: =SUM(I37:P37) -> 0 | S37: =SUM(E37*1.0228) -> 143192 | T37: =SUM(S37*1.012) -> 144910.304
A38: 7 | B38: 3224 | C38: Materijal i dijelovi za tekuće investicijsko održavanje | D38: 837000 | E38: 25000 | G38: 25000 | H38: 0 | S38: =SUM(E38*1.0228) -> 25570 | T38: =SUM(S38*1.012) -> 25876.84
A39: 8 | B39: 3225 | C39: Sitni inventar i auto gume | D39: 215500 | E39: 20000 | G39: 20000 | H39: 0 | S39: =SUM(E39*1.0228) -> 20456 | T39: =SUM(S39*1.012) -> 20701.472
B40: 323 | C40: Rashodi za usluge | D40: =SUM(D41:D49) -> 17247700 | E40: =SUM(E41:E49) -> 221000 | F40: =SUM(F41:F49) -> 0 | G40: 221000 | H40: 0 | I40: 0 | J40: 0 | K40: 0 | L40: 0 | M40: 0 | N40: 0 | O40: 0 | P40: 0 | Q40: 0 | R40: 0 | S40: 226038.8 | T40: 228751.2656
A41: 9 | B41: 3231 | C41: Usluge telefona, pošte i prijevoza | D41: 1788000 | E41: =F41+G41+H41+Q41+R41 -> 33000 | G41: 33000 | H41: =SUM(I41:P41) -> 0 | S41: =SUM(E41*1.0228) -> 33752.4 | T41: =SUM(S41*1.012) -> 34157.4288
A42: 10 | B42: 3232 | C42: Usluge tekućeg i investicijskog održavanja | D42: 5164000 | E42: 100000 | G42: 100000 | H42: 0 | S42: 102280 | T42: 103507.36
A43: 11 | B43: 3233 | C43: Usluge promidžbe i informiranja | D43: 162800 | E43: 5000 | G43: 5000 | H43: 0 | S43: 5114 | T43: 5175.368
A44: 12 | B44: 3234 | C44: Komunalne usluge | D44: 3376000 | E44: 27000 | G44: 27000 | H44: 0 | S44: 27615.6 | T44: 27946.9872
A45: 13 | B45: 3235 | C45: Zakupnine i najamnine | D45: 4400000 | E45: 0 | H45: 0 | S45: 0 | T45: 0
A46: 14 | B46: 3236 | C46: Zdravstvene i veterinarske usluge | D46: 1265000 | E46: 13000 | G46: 13000 | H46: 0 | S46: 13296.4 | T46: 13455.9568
A47: 15 | B47: 3237 | C47: Intelektualne i osobne usluge | D47: 319000 | E47: 3000 | G47: 3000 | H47: 0 | S47: 3068.4 | T47: 3105.2208
A48: 16 | B48: 3238 | C48: Računalne usluge | D48: 123900 | E48: 25000 | G48: 25000 | H48: 0 | S48: 25570 | T48: 25876.84
A49: 17 | B49: 3239 | C49: Ostale usluge | D49: 649000 | E49: 15000 | G49: 15000 | H49: 0 | S49: 15342 | T49: 15526.104
B50: 329 | C50: Ostali nespomenuti rashodi poslovanja | D50: =SUM(D51:D54) -> 1110100 | E50: =SUM(E51:E54) -> 35500 | F50: 13500 | G50: 19000 | H50: 3000 | I50: 0 | J50: 0 | K50: 3000 | L50: 0 | M50: 0 | N50: 0 | O50: 0 | P50: 0 | Q50: 0 | R50: 0 | S50: 36309.4 | T50: 36745.1128
A51: 18 | B51: 3292 | C51: Premije osiguranja | D51: 460000 | E51: =F51+G51+H51+Q51+R51 -> 13000 | G51: 10000 | H51: =SUM(I51:P51) -> 3000 | K51: 3000 | S51: =SUM(E51*1.0228) -> 13296.4 | T51: =SUM(S51*1.012) -> 13455.9568
A52: 19 | B52: 3293 | C52: Reprezentacija | D52: 79100 | E52: 0 | H52: 0 | S52: =SUM(E52*1.0228) -> 0 | T52: =SUM(S52*1.012) -> 0
A53: 20 | B53: 3294 | C53: Članarine | D53: 6300 | E53: 0 | H53: 0 | S53: =SUM(E53*1.0228) -> 0 | T53: =SUM(S53*1.012) -> 0
A54: 21 | B54: 3299 | C54: Ostali nespomenuti rashodi poslovanja | D54: 564700 | E54: 22500 | F54: 13500 | G54: 9000 | H54: 0 | S54: =SUM(E54*1.0228) -> 23013 | T54: =SUM(S54*1.012) -> 23289.156
B55: 343 | C55: Ostali financijski rashodi | D55: =SUM(D56:D58) -> 348400 | E55: =SUM(E56:E58) -> 4000 | F55: 0 | G55: 4000 | H55: 0 | I55: 0 | J55: 0 | K55: 0 | L55: 0 | M55: 0 | N55: 0 | O55: 0 | P55: 0 | Q55: 0 | R55: 0 | S55: 4091.2 | T55: 4140.2944
A56: 22 | B56: 3431 | C56: Bankarske usluge i usluge platnog prometa | D56: 151200 | E56: =F56+G56+H56+Q56+R56 -> 3000 | G56: 3000 | H56: =SUM(I56:P56) -> 0 | S56: =SUM(E56*1.0228) -> 3068.4 | T56: =SUM(S56*1.012) -> 3105.2208
A57: 23 | B57: 3433 | C57: Zatezne kamate | D57: 134000 | E57: =F57+G57+H57+Q57+R57 -> 1000 | G57: 1000 | H57: =SUM(I57:P57) -> 0 | S57: =SUM(E57*1.0228) -> 1022.8 | T57: =SUM(S57*1.012) -> 1035.0736
A58: 24 | B58: 3434 | C58: Ostali nespomenuti financijski rashodi | D58: 63200 | E58: =F58+G58+H58+Q58+R58 -> 0 | H58: =SUM(I58:P58) -> 0 | S58: =SUM(E58*1.0228) -> 0 | T58: =SUM(S58*1.012) -> 0
S59: =SUM(E59*1.0228) -> 0 | T59: =SUM(S59*1.012) -> 0
A60: Projekt K100002. ODRŽAVANJE I OPREMANJE SREDNJIH ŠKOLA I UČENIČKIH DOMOVA | D60: =SUM(D62+D64) -> 16035694 | E60: =SUM(E62+E64) -> 260000 | F60: =SUM(F62+F64) -> 0 | G60: 260000 | H60: 0 | I60: 0 | J60: 0 | K60: 0 | L60: 0 | M60: 0 | N60: 0 | O60: 0 | P60: 0 | Q60: 0 | R60: 0 | S60: 265928 | T60: 269119.136
B61: 4 | C61: RASHODI ZA NABAVU NEFINANCIJSKE IMOVINE | D61: =D62+D64 -> 16035694
B62: 421 | C62: Građevinski objekti | D62: =SUM(D63) -> 13635694 | E62: =SUM(E63) -> 240000 | F62: =SUM(F63) -> 0 | G62: 240000 | H62: 0 | I62: 0 | J62: 0 | K62: 0 | L62: 0 | M62: 0 | N62: 0 | O62: 0 | P62: 0 | Q62: 0 | R62: 0 | S62: 245472 | T62: 248417.664
A63: 25 | B63: 4212 | C63: Poslovni objekti | D63: 13635694 | E63: =F63+G63+H63+Q63+R63 -> 240000 | F63: 0 | G63: 240000 | H63: =SUM(I63:P63) -> 0 | S63: =SUM(E63*1.0228) -> 245472 | T63: =SUM(S63*1.012) -> 248417.664
B64: 422 | C64: Postrojenja i oprema | D64: =SUM(D65:D66) -> 2400000 | E64: =SUM(E65:E66) -> 20000 | F64: 0 | G64: 20000 | H64: 0 | I64: 0 | J64: 0 | K64: 0 | L64: 0 | M64: 0 | N64: 0 | O64: 0 | P64: 0 | Q64: 0 | R64: 0 | S64: 20456 | T64: 20701.472
A65: 26 | B65: 4221 | C65: Uredska oprema i namještaj | D65: 1700000 | E65: =F65+G65+H65+Q65+R65 -> 10000 | G65: 10000 | H65: =SUM(I65:P65) -> 0 | S65: =SUM(E65*1.0228) -> 10228 | T65: =SUM(S65*1.012) -> 10350.736
A66: 27 | B66: 4227 | C66: Uređaji, strojevi i oprema za ostale namjene | D66: 700000 | E66: =F66+G66+H66+Q66+R66 -> 10000 | G66: 10000 | H66: =SUM(I66:P66) -> 0 | S66: =SUM(E66*1.0228) -> 10228 | T66: =SUM(S66*1.012) -> 10350.736
A68: Program 1002. POJAČANI STANDARD U SREDNJEM ŠKOLSTVU | D68: =D71+D75+D79+D83+D96+D100+D104+D110+D125+D129 -> 52200000 | E68: =E71+E75+E79+E83+E96+E100+E104+E110+E125+E129 -> 410000 | F68: =F71+F75+F79+F83+F96+F100+F104+F110+F125+F129 -> 200000 | G68: =G71+G75+G79+G83+G96+G100+G104+G110+G125+G129 -> 210000 | H68: 0 | I68: 0 | J68: 0 | K68: 0 | L68: 0 | M68: 0 | N68: 0 | O68: 0 | P68: 0 | Q68: 0 | R68: 0 | S68: 419348 | T68: 424380.176
B69: 3 | C69: RASHODI POSLOVANJA | D69: =D72+D76+D80+D84+D86+D88+D91+D93+D97+D101+D105+D107+D111+D113+D126+D130 -> 40575000 | G69: =G72+G76+G80+G84+G86+G88+G91+G93+G97+G101+G105+G107+G111+G113+G126+G130 -> 210000
B70: 4 | C70: RASHODI ZA NABAVU NEFINANCIJSKE IMOVINE | D70: =D115+D117+D120+D122 -> 11625000 | G70: =G115+G117+G120+G122 -> 0
A71: Aktivnost A100001. NAKNADE ZA RAD ŠKOLSKIH ODBORA | D71: =SUM(D72) -> 2000000 | E71: =SUM(E72) -> 40000 | F71: =SUM(F72) -> 0 | G71: 40000 | H71: 0 | I71: 0 | J71: 0 | K71: 0 | L71: 0 | M71: 0 | N71: 0 | O71: 0 | P71: 0 | Q71: 0 | R71: 0 | S71: 40912 | T71: 41402.944
B72: 329 | C72: Ostali nespomenuti rashodi poslovanja | D72: =SUM(D73) -> 2000000 | E72: =SUM(E73) -> 40000 | F72: =SUM(F73) -> 0 | G72: 40000 | H72: 0 | I72: 0 | J72: 0 | K72: 0 | L72: 0 | M72: 0 | N72: 0 | O72: 0 | P72: 0 | Q72: 0 | R72: 0 | S72: 40912 | T72: 41402.944
A73: 28 | B73: 3291 | C73: Naknade za rad predstavničkih i izvršnih tijela, povj. i sl | D73: 2000000 | E73: =F73+G73+H73+Q73+R73 -> 40000 | G73: 40000 | H73: =SUM(I73:P73) -> 0 | S73: =SUM(E73*1.0228) -> 40912 | T73: =SUM(S73*1.012) -> 41402.944
S74: =SUM(E74*1.0228) -> 0 | T74: =SUM(S74*1.012) -> 0
A75: Aktivnost A100002. DONACIJE PRIVATNIM SREDNJIM ŠKOLAMA | D75: =SUM(D76) -> 900000 | E75: =SUM(E76) -> 0 | F75: =SUM(F76) -> 0 | G75: 0 | H75: 0 | I75: 0 | J75: 0 | K75: 0 | L75: 0 | M75: 0 | N75: 0 | O75: 0 | P75: 0 | Q75: 0 | R75: 0 | S75: 0 | T75: 0
B76: 381 | C76: Tekuće donacije | D76: =SUM(D77) -> 900000 | E76: =SUM(E77) -> 0 | F76: 0 | G76: 0 | H76: 0 | I76: 0 | J76: 0 | K76: 0 | L76: 0 | M76: 0 | N76: 0 | O76: 0 | P76: 0 | Q76: 0 | R76: 0 | S76: 0 | T76: 0
A77: 29 | B77: 3811 | C77: Tekuće donacije u novcu | D77: 900000 | E77: =F77+G77+H77+Q77+R77 -> 0 | G77: 0 | H77: =SUM(I77:P77) -> 0 | S77: =SUM(E77*1.0228) -> 0 | T77: =SUM(S77*1.012) -> 0
S78: =SUM(E78*1.0228) -> 0 | T78: =SUM(S78*1.012) -> 0
A79: Aktivnost A100003. IZVANNASTAVNE I OSTALE AKTIVNOSTI | D79: =SUM(D80) -> 2100000 | E79: =SUM(E80) -> 0 | F79: =SUM(F80) -> 0 | G79: 0 | H79: 0 | I79: 0 | J79: 0 | K79: 0 | L79: 0 | M79: 0 | N79: 0 | O79: 0 | P79: 0 | Q79: 0 | R79: 0 | S79: 0 | T79: 0
B80: 329 | C80: Ostali nespomenuti rashodi poslovanja | D80: =SUM(D81) -> 2100000 | E80: =SUM(E81) -> 0 | F80: =SUM(F81) -> 0 | G80: 0 | H80: 0 | I80: 0 | J80: 0 | K80: 0 | L80: 0 | M80: 0 | N80: 0 | O80: 0 | P80: 0 | Q80: 0 | R80: 0 | S80: 0 | T80: 0
A81: 30 | B81: 3299 | C81: Ostali nespomenuti rashodi poslovanja | D81: 2100000 | E81: =F81+G81+H81+Q81+R81 -> 0 | H81: =SUM(I81:P81) -> 0 | S81: =SUM(E81*1.0228) -> 0 | T81: =SUM(S81*1.012) -> 0
S82: =SUM(E82*1.0228) -> 0 | T82: =SUM(S82*1.012) -> 0
A83: Aktivnost A100007. POMOĆNICI U NASTAVI | D83: =SUM(D84+D86+D88+D91+D93) -> 1840000 | E83: =SUM(E84+E86+E88+E91+E93) -> 110000 | F83: =SUM(F84+F86+F88+F91+F93) -> 0 | G83: 110000 | H83: 0 | I83: 0 | J83: 0 | K83: 0 | L83: 0 | M83: 0 | N83: 0 | O83: 0 | P83: 0 | Q83: 0 | R83: 0 | S83: 112508 | T83: 113858.096
B84: 311 | C84: Plaće (Bruto) | D84: =SUM(D85) -> 202000 | E84: =SUM(E85) -> 0 | F84: =SUM(F85) -> 0 | G84: 0 | H84: 0 | I84: 0 | J84: 0 | K84: 0 | L84: 0 | M84: 0 | N84: 0 | O84: 0 | P84: 0 | Q84: 0 | R84: 0 | S84: 0 | T84: 0
A85: 31 | B85: 3111 | C85: Plaće za redovan rad | D85: 202000 | E85: =F85+G85+H85+Q85+R85 -> 0 | H85: =SUM(I85:P85) -> 0 | S85: =SUM(E85*1.0228) -> 0 | T85: =SUM(S85*1.012) -> 0
B86: 312 | C86: Ostali rashodi za zaposlene | D86: =SUM(D87) -> 19000 | E86: =SUM(E87) -> 0 | F86: =SUM(F87) -> 0 | G86: 0 | H86: 0 | I86: 0 | J86: 0 | K86: 0 | L86: 0 | M86: 0 | N86: 0 | O86: 0 | P86: 0 | Q86: 0 | R86: 0 | S86: 0 | T86: 0
A87: 32 | B87: 3121 | C87: Ostali rashodi za zaposlene | D87: 19000 | E87: =F87+G87+H87+Q87+R87 -> 0 | H87: =SUM(I87:P87) -> 0 | S87: =SUM(E87*1.0228) -> 0 | T87: =SUM(S87*1.012) -> 0
B88: 313 | C88: Doprinosi za plaće | D88: =SUM(D89+D90) -> 43000 | E88: =SUM(E89+E90) -> 0 | F88: =SUM(F89+F90) -> 0 | G88: 0 | H88: 0 | I88: 0 | J88: 0 | K88: 0 | L88: 0 | M88: 0 | N88: 0 | O88: 0 | P88: 0 | Q88: 0 | R88: 0 | S88: 0 | T88: 0
A89: 33 | B89: 3132 | C89: Doprinosi za zdravstveno osiguranje | D89: 40000 | E89: =F89+G89+H89+Q89+R89 -> 0 | H89: =SUM(I89:P89) -> 0 | S89: =SUM(E89*1.0228) -> 0 | T89: =SUM(S89*1.012) -> 0
A90: 34 | B90: 3133 | C90: Doprinosi za obavezno osiguranje u slučaju nezaposlenosti | D90: 3000 | E90: =F90+G90+H90+Q90+R90 -> 0 | H90: =SUM(I90:P90) -> 0 | S90: =SUM(E90*1.0228) -> 0 | T90: =SUM(S90*1.012) -> 0
B91: 321 | C91: Naknade troškova zaposlenima | D91: =SUM(D92) -> 113000 | E91: =SUM(E92) -> 0 | F91: =SUM(F92) -> 0 | G91: 0 | H91: 0 | I91: 0 | J91: 0 | K91: 0 | L91: 0 | M91: 0 | N91: 0 | O91: 0 | P91: 0 | Q91: 0 | R91: 0 | S91: 0 | T91: 0
A92: 35 | B92: 3212 | C92: Naknade za prijevoz, za rad na terenu i odvojeni život | D92: 113000 | E92: =F92+G92+H92+Q92+R92 -> 0 | H92: =SUM(I92:P92) -> 0 | S92: =SUM(E92*1.0228) -> 0 | T92: =SUM(S92*1.012) -> 0
B93: 323 | C93: Rashodi za usluge | D93: =SUM(D94) -> 1463000 | E93: =SUM(E94) -> 110000 | F93: =SUM(F94) -> 0 | G93: 110000 | H93: 0 | I93: 0 | J93: 0 | K93: 0 | L93: 0 | M93: 0 | N93: 0 | O93: 0 | P93: 0 | Q93: 0 | R93: 0 | S93: 112508 | T93: 113858.096
A94: 36 | B94: 3237 | C94: Intelektualne i osobne usluge | D94: 1463000 | E94: =F94+G94+H94+Q94+R94 -> 110000 | G94: 110000 | H94: =SUM(I94:P94) -> 0 | S94: =SUM(E94*1.0228) -> 112508 | T94: =SUM(S94*1.012) -> 113858.096
S95: =SUM(E95*1.0228) -> 0 | T95: =SUM(S95*1.012) -> 0
A96: Aktivnost A100008. SUFINANCIRANJE MEĐUMJESNOG JAVNOG PRIJEVOZA UČENIKA | D96: =SUM(D97) -> 20000000 | E96: =SUM(E97) -> 245000 | F96: 200000 | G96: 45000 | H96: 0 | I96: 0 | J96: 0 | K96: 0 | L96: 0 | M96: 0 | N96: 0 | O96: 0 | P96: 0 | Q96: 0 | R96: 0 | S96: 250586 | T96: 253593.032
B97: 372 | C97: Ostale naknade građanima i kućanstvima iz proračuna | D97: =SUM(D98) -> 20000000 | E97: =SUM(E98) -> 245000 | F97: 200000 | G97: 45000 | H97: 0 | I97: 0 | J97: 0 | K97: 0 | L97: 0 | M97: 0 | N97: 0 | O97: 0 | P97: 0 | Q97: 0 | R97: 0 | S97: 250586 | T97: 253593.032
A98: 37 | B98: 3722 | C98: Naknade građanima i kućanstvima u naravi | D98: 20000000 | E98: =F98+G98+H98+Q98+R98 -> 245000 | F98: 200000 | G98: 45000 | H98: =SUM(I98:P98) -> 0 | S98: =SUM(E98*1.0228) -> 250586 | T98: =SUM(S98*1.012) -> 253593.032
S99: =SUM(E99*1.0228) -> 0
A100: Aktivnost A100009. NABAVA UDŽBENIKA | D100: =SUM(D101) -> 5000000 | E100: =SUM(E101) -> 15000 | F100: =SUM(F101) -> 0 | G100: 15000 | H100: 0 | I100: 0 | J100: 0 | K100: 0 | L100: 0 | M100: 0 | N100: 0 | O100: 0 | P100: 0 | Q100: 0 | R100: 0 | S100: 15342 | T100: 15526.104
B101: 372 | C101: Ostale naknade građanima i kućanstvima iz proračuna | D101: =SUM(D102) -> 5000000 | E101: =SUM(E102) -> 15000 | F101: 0 | G101: =SUM(G102) -> 15000 | H101: 0 | I101: 0 | J101: 0 | K101: 0 | L101: 0 | M101: 0 | N101: 0 | O101: 0 | P101: 0 | Q101: 0 | R101: 0 | S101: 15342 | T101: 15526.104
A102: 38 | B102: 3722 | C102: Naknade građanima i kućanstvima u naravi | D102: 5000000 | E102: =F102+G102+H102+Q102+R102 -> 15000 | G102: 15000 | H102: =SUM(I102:P102) -> 0 | S102: =SUM(E102*1.0228) -> 15342 | T102: =SUM(S102*1.012) -> 15526.104
S103: =SUM(E103*1.0228) -> 0
A104: Aktivnost A100010. REDOVNA DJELATNOST SREDNJIH ŠKOLA I UČENIČKIH DOMOVA | D104: =SUM(D105+D107) -> 3325000 | E104: =SUM(E105+E107) -> 0 | F104: 0 | G104: 0 | H104: 0 | I104: 0 | J104: 0 | K104: 0 | L104: 0 | M104: 0 | N104: 0 | O104: 0 | P104: 0 | Q104: 0 | R104: 0 | S104: 0 | T104: 0
B105: 322 | C105: Rashodi za materijal i energiju | D105: =SUM(D106) -> 2850000 | E105: =SUM(E106) -> 0 | F105: =SUM(F106) -> 0 | G105: 0 | H105: 0 | I105: 0 | J105: 0 | K105: 0 | L105: 0 | M105: 0 | N105: 0 | O105: 0 | P105: 0 | Q105: 0 | R105: 0 | S105: 0 | T105: 0
A106: 39 | B106: 3223 | C106: Energija | D106: 2850000 | E106: =F106+G106+H106+Q106+R106 -> 0 | H106: =SUM(I106:P106) -> 0 | S106: =SUM(E106*1.0228) -> 0 | T106: =SUM(S106*1.012) -> 0
B107: 323 | C107: Rashodi za usluge | D107: =SUM(D108) -> 475000 | E107: =SUM(E108) -> 0 | F107: =SUM(F108) -> 0 | G107: 0 | H107: 0 | I107: 0 | J107: 0 | K107: 0 | L107: 0 | M107: 0 | N107: 0 | O107: 0 | P107: 0 | Q107: 0 | R107: 0 | S107: 0 | T107: 0
A108: 40 | B108: 3234 | C108: Komunalne usluge | D108: 475000 | E108: =F108+G108+H108+Q108+R108 -> 0 | H108: =SUM(I108:P108) -> 0 | S108: =SUM(E108*1.0228) -> 0 | T108: =SUM(S108*1.012) -> 0
S109: =SUM(E109*1.0228) -> 0 | T109: =SUM(S109*1.012) -> 0
A110: Projekt K100004. ODRŽAVANJE I OPREMANJE SREDNJIH ŠKOLA ZA POBOLJŠANJE STANDARDA | D110: =SUM(D111+D113+D115+D117+D120+D122) -> 15975000 | E110: =SUM(E111+E113+E115+E117+E120+E122) -> 0 | F110: =SUM(F111+F113+F115+F117+F120+F122) -> 0 | G110: 0 | H110: 0 | I110: 0 | J110: 0 | K110: 0 | L110: 0 | M110: 0 | N110: 0 | O110: 0 | P110: 0 | Q110: 0 | R110: 0 | S110: 0 | T110: 0
B111: 323 | C111: Rashodi za usluge | D111: =SUM(D112) -> 4000000 | E111: =SUM(E112) -> 0 | F111: 0 | G111: 0 | H111: 0 | I111: 0 | J111: 0 | K111: 0 | L111: 0 | M111: 0 | N111: 0 | O111: 0 | P111: 0 | Q111: 0 | R111: 0 | S111: 0 | T111: 0
A112: 41 | B112: 3232 | C112: Usluge tekućeg i investicijskog održavanja | D112: 4000000 | E112: =F112+G112+H112+Q112+R112 -> 0 | H112: =SUM(I112:P112) -> 0 | S112: =SUM(E112*1.0228) -> 0 | T112: =SUM(S112*1.012) -> 0
B113: 329 | C113: Ostali nespomenuti rashodi poslovanja | D113: =SUM(D114) -> 350000 | E113: =SUM(E114) -> 0 | F113: 0 | G113: 0 | H113: 0 | I113: 0 | J113: 0 | K113: 0 | L113: 0 | M113: 0 | N113: 0 | O113: 0 | P113: 0 | Q113: 0 | R113: 0 | S113: 0 | T113: 0
A114: 42 | B114: 3292 | C114: Premije osiguranja | D114: 350000 | E114: =F114+G114+H114+Q114+R114 -> 0 | H114: =SUM(I114:P114) -> 0 | S114: =SUM(E114*1.0228) -> 0 | T114: =SUM(S114*1.012) -> 0
B115: 421 | C115: Građevinski objekti | D115: =SUM(D116) -> 9925000 | E115: =SUM(E116) -> 0 | F115: 0 | G115: 0 | H115: 0 | I115: 0 | J115: 0 | K115: 0 | L115: 0 | M115: 0 | N115: 0 | O115: 0 | P115: 0 | Q115: 0 | R115: 0 | S115: 0 | T115: 0
A116: 43 | B116: 4212 | C116: Poslovni objekti | D116: 9925000 | E116: =F116+G116+H116+Q116+R116 -> 0 | H116: =SUM(I116:P116) -> 0 | S116: =SUM(E116*1.0228) -> 0 | T116: =SUM(S116*1.012) -> 0
B117: 422 | C117: Postrojenja i oprema | D117: =SUM(D118+D119) -> 1000000 | E117: =SUM(E118+E119) -> 0 | F117: 0 | G117: 0 | H117: 0 | I117: 0 | J117: 0 | K117: 0 | L117: 0 | M117: 0 | N117: 0 | O117: 0 | P117: 0 | Q117: 0 | R117: 0 | S117: 0 | T117: 0
A118: 44 | B118: 4221 | C118: Uredska oprema i namještaj | D118: 500000 | E118: =F118+G118+H118+Q118+R118 -> 0 | H118: =SUM(I118:P118) -> 0 | S118: =SUM(E118*1.0228) -> 0 | T118: =SUM(S118*1.012) -> 0
A119: 45 | B119: 4227 | C119: Uređaji, strojevi i oprema za ostale namjene | D119: 500000 | E119: =F119+G119+H119+Q119+R119 -> 0 | H119: =SUM(I119:P119) -> 0 | S119: =SUM(E119*1.0228) -> 0 | T119: =SUM(S119*1.012) -> 0
B120: 423 | C120: Prijevozna sredstva | D120: =SUM(D121) -> 200000 | E120: =SUM(E121) -> 0 | F120: 0 | G120: 0 | H120: 0 | I120: 0 | J120: 0 | K120: 0 | L120: 0 | M120: 0 | N120: 0 | O120: 0 | P120: 0 | Q120: 0 | R120: 0 | S120: 0 | T120: 0
A121: 46 | B121: 4231 | C121: Prijevozna sredstva u cestovnom prometu | D121: 200000 | E121: =F121+G121+H121+Q121+R121 -> 0 | H121: =SUM(I121:P121) -> 0 | S121: =SUM(E121*1.0228) -> 0 | T121: =SUM(S121*1.012) -> 0
B122: 424 | C122: Knjige, umjetnička djela i ostale izložbene vrijednosti | D122: =SUM(D123) -> 500000 | E122: =SUM(E123) -> 0 | F122: =SUM(F123) -> 0 | G122: 0 | H122: 0 | I122: 0 | J122: 0 | K122: 0 | L122: 0 | M122: 0 | N122: 0 | O122: 0 | P122: 0 | Q122: 0 | R122: 0 | S122: 0 | T122: 0
A123: 47 | B123: 4241 | C123: Knjige | D123: 500000 | E123: =F123+G123+H123+Q123+R123 -> 0 | H123: =SUM(I123:P123) -> 0 | S123: =SUM(E123*1.0228) -> 0 | T123: =SUM(S123*1.012) -> 0
A125: Projekt T100001. SUFINANCIRANJE PROJEKTA PRIJAVLJENIH NA NATJEČAJE EUROPSKIH FONDOVA ILI PARTNERSTVA ZA EU FONDOVE | D125: =SUM(D126) -> 150000 | E125: =SUM(E126) -> 0 | F125: =SUM(F126) -> 0 | G125: 0 | H125: 0 | I125: 0 | J125: 0 | K125: 0 | L125: 0 | M125: 0 | N125: 0 | O125: 0 | P125: 0 | Q125: 0 | R125: 0 | S125: 0 | T125: 0
B126: 329 | C126: Ostali nespomenuti rashodi poslovanja | D126: =SUM(D127) -> 150000 | E126: =SUM(E127) -> 0 | F126: 0 | G126: 0 | H126: 0 | I126: 0 | J126: 0 | K126: 0 | L126: 0 | M126: 0 | N126: 0 | O126: 0 | P126: 0 | Q126: 0 | R126: 0 | S126: 0 | T126: 0
A127: 48 | B127: 3299 | C127: Ostali nespomenuti rashodi poslovanja | D127: 150000 | E127: =F127+G127+H127+Q127+R127 -> 0 | H127: =SUM(I127:P127) -> 0 | S127: =SUM(E127*1.0228) -> 0 | T127: =SUM(S127*1.012) -> 0
A129: Projekt T100002. ŠKOLSKA SHEMA VOĆE, POVRĆE I MLIJEČNI PROIZVODI | D129: =D130 -> 910000 | E129: =E130 -> 0 | F129: =F130 -> 0 | G129: 0 | H129: 0 | I129: 0 | J129: 0 | K129: 0 | L129: 0 | M129: 0 | N129: 0 | O129: 0 | P129: 0 | Q129: 0 | R129: 0 | S129: 0 | T129: 0
B130: 322 | C130: Rashodi za materijal i energiju | D130: =SUM(D131) -> 910000 | E130: =SUM(E131) -> 0 | F130: 0 | G130: 0 | H130: 0 | I130: 0 | J130: 0 | K130: 0 | L130: 0 | M130: 0 | N130: 0 | O130: 0 | P130: 0 | Q130: 0 | R130: 0 | S130: 0 | T130: 0
A131: 49 | B131: 3222 | C131: Materijal i sirovine | D131: 910000 | E131: =F131+G131+H131+Q131+R131 -> 0 | H131: =SUM(I131:P131) -> 0 | S131: =SUM(E131*1.0228) -> 0 | T131: =SUM(S131*1.012) -> 0
A133: UKUPNO - 0904 - dec +jp: | D133: =D68+D27 -> 140833000 | E133: =E68+E27 -> 1546500 | F133: 230500 | G133: 1178000 | H133: 138000 | I133: 0 | J133: 0 | K133: 118000 | L133: 20000 | M133: 0 | N133: 0 | O133: 0 | P133: 0 | Q133: 0 | R133: 0 | S133: 1581760.2 | T133: 1600741.322
D134: =D12-D133 -> 10819999.84
A135: U Zagrebu,________________________ 2019. | D135: =D14=D134 -> TRUE | K135: M.P.
R136: Potpis Ravnatelja-ice:

Sheet dodatna konta
R1: Obrazac FIN. PL.- SŠ/UD
A2: PLAN RASHODA I IZDATAKA 2020.-2022.
A3: Korisnik proračuna:
A4: Kontak osoba:
A5: Tel:
A7: Poz. | B7: Broj ek.klas. | C7: Naziv | D7: PLAN 2019. 1.1.-30.6.2019. | E7: PRIJEDLOG PLANA ZA 2020. | F7: RASHODI ZA ZAPOSLENE KOJI SE FINANCIRAJU IZ DRŽAVNOG PRORAČUNA (konto 636 izv.fin. 52) | G7: PLANIRANI PRIHODI I PRIMICI IZ NADLEŽNOG PRORAČUNA ZA 2020. (konto 671, izv.fin. 11) | H7: PLANIRANI PRIHODI I PRIMICI KOJI NISU DOBIVENI S RAČUNA GRADA ZAGREBA ZA 2020. | I7: Pomoći iz inozemstva i od subjekata unutar općeg proračuna (skupina konta 63, izv.fin 51,52 i 56) | J7: Prihodi od imovine (skupina konta 64, izv.fin. 11 i 43) | K7: Prihodi od upravnih i administrativnih pristojbi, pristojbi po posebnim propisima i naknada (skupina konta 65, izv.fin. 11 i 43) | L7: Prihodi od prodaje proizvoda i robe te pruženih usluga i prihodi od donacija (skupina konta 66, izv.fin. 31 i 61 ) | M7: Prihodi iz nadležnog proračuna i HZZO-a na temelju ugovornih obveza (konto 673, izv.fin. 43) | N7: Kazne, upravne mjere i ostali prihodi (skupina konta 68, izv fin. 11) | O7: Prihodi od prodaje proizvedene dugotrajne imovine (skupina konta 72 i 73, izv.fin. 11) | P7: Primici od zaduživanja (skupina konta 81, 83 i 84, izv.fin 11 i 81) | Q7: Višak/manjak iz prethodne(ih) godine koji će se pokriti/ rasporediti | R7: Višak/manjak iz prethodne(ih) godine koji će se pokriti/rasporediti, a koji je posljedica financiranje EU projekata | S7: PRIJEDLOG PLANA ZA 2021. | T7: PRIJEDLOG PLANA ZA 2022.
F9: ⑭ | G9: ⑫ | I9: ① | J9: ② | K9: ③ | L9: ④ | M9: ⑤ | N9: ⑥ | O9: ⑦ I ⑧ | P9: ⑨,⑩ I ⑪ | Q9: ⑬
A10: 1 | B10: 2 | C10: 3 | E10: 4=5+6+7+16+17 | F10: 5 | G10: 6 | H10: 7=8+9+10+11+ 12+13+14+15 | I10: 8 | J10: 9 | K10: 10 | L10: 11 | M10: 12 | N10: 13 | O10: 14 | P10: 15 | Q10: 16 | R10: 17 | S10: 18 | T10: 19
C12: DODATNA KONTA
E13: =F13+G13+H13+Q13+R13 -> 0 | H13: =SUM(I13:P13) -> 0
E14: =F14+G14+H14+Q14+R14 -> 0 | H14: =SUM(I14:P14) -> 0
E15: 0 | H15: 0
E16: 0 | H16: 0
E17: 0 | H17: 0
E18: 0 | H18: 0
E19: 0 | H19: =SUM(I19:P19) -> 0
E20: 0 | H20: 0
E21: =SUM(E13:E20) -> 0 | F21: =SUM(F13:F20) -> 0 | G21: 0 | H21: 0 | I21: 0 | J21: 0 | K21: 0 | L21: 0 | M21: 0 | N21: 0 | O21: 0 | P21: 0 | Q21: 0 | R21: 0 | S21: =SUM(S13:S20) -> 0 | T21: =SUM(T13:T20) -> 0

Sheet OBRAZLOŽENJE
A1: Obrazac Obrazloženja financijskog plana
A4: NAZIV KORISNIKA:SREDNJA ŠKOLA CENTAR ZA ODGOJ I OBRAZOVANJE,Zagreb, Zagorska 14
A6: SAŽETAK DJELOKRUGA: | B6: odgoj i obrazovanje učenika u strukovnim programima za stjecanje niže stručne spreme
A9: 1. NAZIV PROGRAMA | B9: Srednja škola-Centar za odgoj i obrazovanje, Zagreb, Zagorska 14, srednja je strukovna škola u kojoj se odgaja i obrazuje mladež za stjecanje niže stručne spreme u 14 programa-zanimanja. Imamo i tri skupine učenika po posebnom programu za stjecanje kompetencija u aktivnostima svakodnevnog života uz individualizirani pristup u dobi 17-21. te program produženog stručnog postupka, koji se odvija u pet skupina
A11: 2. CILJEVI (što se programom želi postići) | B11: MISIJA ŠKOLE: razumijevanjem i potporom odgajamo i obrazujemo učenike za život u posebnoj srednjoj školi. VIZIJA ŠKOLE: •Zalažemo se za školovanje djece u onim obrazovnim sredinama koje im pružaju maksimalne mogućnosti da se razvijaju i usavršavaju svoje emocionalne, socijalne i kognitivne vještine, znanja i navike i steknu kompetencije koje će im omogućiti kvalitetno uključivanje u društveni život i svijet rada. •Želimo postati Centar potpore edukacijskoj inkluziji u kojem ćemo pružati potporu učenicima, roditeljima i nastavnicima za uspješno školovanje učenika s teškoćama u inkluzivnim školama. MOTO ŠKOLE: Škola koja vraća osmijeh.
A18: 3. NAČIN OSTVARENJA CILJA (kako se nastoji realizirati program, tko je korisnik ili primatelj usluge) | B18: Program Srednje škole-Centra za odgoj i obrazovanje, Zagreb financira se iz Državnog proračuna (plaće i naknade za zaposlene), proračuna Grada Zagreba (naknade troškova zaposlenih, rashodi za materijal, rashodi za usluge, ostali nespomenuti rashodi i financijski rashodi). Nastava je organizirana u dvije smjene u B-turnusu i jednoj smjeni u A-turnusu koji se izmjenjuju. Redovna i izborna nastava se izvodi prema nastavnim planovima i programima, koje je donijelo Ministarstvo znanosti, obrazovanja i sporta, Godišnjem planu i programu rada te Školskom kurikulumu za školsku godinu 2019./2020. U školi se izvode i dva fakultativna predmeta: Domaćinstvo i Vjeronauk, koji se financiraju iz proračuna škole.
A21: 4. ZAKONSKE I DRUGE PODLOGE NA KOJIMA SE ZASNIVA PROGRAM | B21: Zakon o odgoju i obrazovanju (NN. br. 87/08., 86/09., 92/10., 105/10., 90/1., 16/12., 86/12./ , 94/13, 152/14, 07./17 i 68./18. ) Zakon o ustanovama, NN. br. 76/93., 29/97., 47/99., 35/08. Zakon o proračunu (NN. br. 87/08. 136/12, 15/15., . ), Pravilnik o proračunskim klasifikacijama (NN.br. 26/10 i 120/13) i Pravilnik o proračunskom računovodstvu i računskom planu (NN. br. 124/14. i 115/15.) Upute za izradu proračuna lokalne i područne (regionalne) samouprave za razdoblje 2020. - 2022. od 17. rujna 2019..Godišnji plan i program rada za školsku godinu 2019./2020. Školski kurikulum Srednje škole-Centar za odgoj i obrazovanje za školsku godinu 2019./20.
A25: 5. POKAZATELJI REZULTATA NA KOJIMA SE ZASNIVAJU IZRAČUNI I OCJENE POTREBNIH SREDSTAVA | B25: Naša škola je bila domaćin na WorldSkills Croatia Državnom natjecanju za pomoćne cvjećare i Smotre radova učenika s teškoćama. Učenici Matija i Antun su na Smotri osvojili 2. mjesto i srebrne medalje, a Marija i Natalija su u disciplini za pomoćne cvjećare osvojile 3. mjesto i brončane medalje! Nagrada „Profesor Baltazar“ dodijeljena je učenicima naše škole za osvojeno 2. i 3. mjesto kao i njihovim mentoricama dipl. ing. Dijani Matić i prof. Petri Međimorec Grgurić. Dana 20.11.2018. naša škola je dobila Pohvalu za uspješno provedenu NAJ-AKCIJU 2018. pod nazivom „EKO DŽEMIX“. Naša škola je posebnim priznanjem nagrađena za već trogodišnju suradnju, promociju i popularizaciju atletike među srednjoškolskom populacijom učenika na Godišnjoj skupštini atletskog kluba AKOSI Agram od 25.listopada 2018.
A28: 6. RAZLOG ODSTUPANJA OD PROŠLOGODIŠNJIH PROJEKCIJA | B28: Posljednjih godina je izraziti pad novoupisanih učenika, radi sve većeg trenda integracije učenika s teškoćama u redovne škole. Ove školske godine upisali smo 153 učenika što je već petu školsku godinu pad ukupnog broja u odnosu na raniji broj upisivanih učenika. Posebne ustanove poput naše financiraju se na jednak način kao i redovne škole. Obzirom na stalan pad učenika i razrednih odjela, a zbog specifičnosti populacije koja se u srednjim školama obrazuje trebalo bi pokušati razmotriti postojeći način financiranja. Mnogi programi koji se izvode u našoj školi ne financiraju se uopće ili nedostatno : program produženog stručnog postupka (tek se od ove školske godine sufinancira sa 10 kn po učeniku-što nije dostatno), prehrana u školskoj kuhinji, praktična nastava u školskoj knjigovežnici i ugostiteljskom praktikumu, programi posebnih kompetencija u aktivnostima svakodnevnog života itd. Školske ustanove donose godišnje operativne planove prema planu i programu koje je donijelo Ministarstvo znanosti, obrazovanja i sporta. Također, planovi se odnose na nastavnu, a ne na fiskalnu godinu, a to je uzrok mnogim odstupanjima u izvršenju financijskih planova. U ovoj školskoj godini očekujemo veći broj rashoda uzrokovanih zamjenom dotrajale stolarije, sanacijom stubišta, sanitarnih čvorova. Objekt je star i u lošem stanju, pa nas stalno opterećuju razne hitne intervencije i popravci, koji nisu uvijek refundirani. Nastavit ćemo s nabavom klimatizacijskih uređaja zbog velikih vrućina i stare i nefunkcionalne stolarije.
A34: 7. POKAZATELJI USPJEŠNOSTI: | B34: Ostvareno je redovno odvijanje nastavnog procesa. Postotak prolaznosti u sve tri godine obrazovanja je 94 %. Prosječna ocjena svih razrednih odjela je 4,00 Stopa stjecanja kvalifikacije iznosi 95% Stručno usavršavanje zaposlenika provedeno je prema planu stručnog usavršav
